[Event "Titled Tuesday Blitz November 22 Late 2022"]
[White "Rosenberg, Evan S"]
[Black "Cannon, David"]
[WhiteFideId "2019299"]
[BlackFideId "3213110"]
[WhiteElo "2382"]
[BlackElo "2013"]
[Result "1-0"]
[Round "04"]
[TimeControl "180+1"]
[Date "2022.11.23"]
[WhiteClock "0:00:08"]
[BlackClock "0:00:03"]

1. d4 {[%clk 0:03:00]}  Nf6 {[%clk 0:02:57]} 2. Nf3 {[%clk 0:03:00]}  g6 {[%clk 0:02:56]} 3. Nc3 {[%clk 0:03:00]}  d5 {[%clk 0:02:54]} 4. Bf4 {[%clk 0:03:01]}  Bg7 {[%clk 0:02:55]} 5. Nb5 {[%clk 0:03:01]}  Na6 {[%clk 0:02:55]} 6. e3 {[%clk 0:03:02]}  O-O {[%clk 0:02:54]} 7. h3 {[%clk 0:03:02]}  c6 {[%clk 0:02:47]} 8. Nc3 {[%clk 0:03:00]}  c5 {[%clk 0:02:48]} 9. Bxa6 {[%clk 0:02:56]}  bxa6 {[%clk 0:02:47]} 10. O-O {[%clk 0:02:50]}  cxd4 {[%clk 0:02:45]} 11. exd4 {[%clk 0:02:50]}  Ne4 {[%clk 0:02:34]} 12. Nxe4 {[%clk 0:02:46]}  dxe4 {[%clk 0:02:35]} 13. Ne5 {[%clk 0:02:46]}  Qb6 {[%clk 0:02:26]} 14. Rb1 {[%clk 0:02:35]}  Rd8 {[%clk 0:02:23]} 15. c3 {[%clk 0:02:33]}  Be6 {[%clk 0:02:17]} 16. Qa4 {[%clk 0:02:21]}  Qb5 {[%clk 0:02:06]} 17. Qa3 {[%clk 0:02:12]}  f6 {[%clk 0:01:54]} 18. Ng4 {[%clk 0:01:38]}  Bc4 {[%clk 0:01:52]} 19. Rfe1 {[%clk 0:01:25]}  Bd3 {[%clk 0:01:52]} 20. Rbd1 {[%clk 0:01:12]}  Rd7 {[%clk 0:01:29]} 21. b3 {[%clk 0:00:58]}  Qc6 {[%clk 0:00:54]} 22. c4 {[%clk 0:00:52]}  Rxd4 {[%clk 0:00:52]} 23. Qxe7 {[%clk 0:00:50]}  Rd7 {[%clk 0:00:44]} 24. Qb4 {[%clk 0:00:41]}  Re8 {[%clk 0:00:26]} 25. Ne3 {[%clk 0:00:37]}  f5 {[%clk 0:00:16]} 26. Nd5 {[%clk 0:00:34]}  Rxd5 {[%clk 0:00:17]} 27. cxd5 {[%clk 0:00:34]}  Qxd5 {[%clk 0:00:18]} 28. Be3 {[%clk 0:00:29]}  Rc8 {[%clk 0:00:10]} 29. Rc1 {[%clk 0:00:25]}  Rf8 {[%clk 0:00:06]} 30. Rc7 {[%clk 0:00:23]}  Be5 {[%clk 0:00:04]} 31. Rxa7 {[%clk 0:00:17]}  Rf7 {[%clk 0:00:03]} 32. Rxf7 {[%clk 0:00:16]}  Kxf7 {[%clk 0:00:04]} 33. Qc5 {[%clk 0:00:13]}  Qe6 {[%clk 0:00:02]} 34. Qa7+ {[%clk 0:00:13]}  Kf6 {[%clk 0:00:02]} 35. Qxh7 {[%clk 0:00:11]}  f4 {[%clk 0:00:02]} 36. Bc5 {[%clk 0:00:08]}  Qd5 {[%clk 0:00:03]} 37. Bf8 {[%clk 0:00:08]} 1-0


[Site "https://www.chess.com"]

[Event "Titled Tuesday Blitz November 22 Late 2022"]
[White "Rubio Tent, Francisco"]
[Black "Guzman, Christopher"]
[WhiteFideId "2238233"]
[BlackFideId "6405096"]
[WhiteElo "2211"]
[BlackElo "2272"]
[Result "0-1"]
[Round "04"]
[TimeControl "180+1"]
[Date "2022.11.23"]
[WhiteClock "0:00:32"]
[BlackClock "0:01:25"]

1. e4 {[%clk 0:03:00]}  c6 {[%clk 0:02:59]} 2. Nc3 {[%clk 0:02:59]}  d5 {[%clk 0:03:00]} 3. Nf3 {[%clk 0:02:59]}  dxe4 {[%clk 0:03:00]} 4. Nxe4 {[%clk 0:02:59]}  Nf6 {[%clk 0:03:01]} 5. Nxf6+ {[%clk 0:02:59]}  exf6 {[%clk 0:03:02]} 6. Bc4 {[%clk 0:02:58]}  Bd6 {[%clk 0:03:03]} 7. d4 {[%clk 0:02:57]}  O-O {[%clk 0:03:03]} 8. O-O {[%clk 0:02:58]}  Na6 {[%clk 0:03:03]} 9. h3 {[%clk 0:02:57]}  Nc7 {[%clk 0:03:03]} 10. Re1 {[%clk 0:02:56]}  b5 {[%clk 0:03:01]} 11. Bd3 {[%clk 0:02:53]}  Be6 {[%clk 0:03:01]} 12. a4 {[%clk 0:02:53]}  a6 {[%clk 0:03:01]} 13. c3 {[%clk 0:02:50]}  Qd7 {[%clk 0:03:01]} 14. Nh2 {[%clk 0:02:43]}  Rfe8 {[%clk 0:03:00]} 15. Bd2 {[%clk 0:02:42]}  Nd5 {[%clk 0:02:51]} 16. Qf3 {[%clk 0:02:39]}  Rab8 {[%clk 0:02:48]} 17. axb5 {[%clk 0:02:37]}  axb5 {[%clk 0:02:48]} 18. Ng4 {[%clk 0:02:36]}  Ra8 {[%clk 0:02:39]} 19. b3 {[%clk 0:02:03]}  Rxa1 {[%clk 0:02:38]} 20. Rxa1 {[%clk 0:02:03]}  Nb6 {[%clk 0:02:34]} 21. Re1 {[%clk 0:01:03]}  Bxb3 {[%clk 0:02:30]} 22. Rxe8+ {[%clk 0:01:04]}  Qxe8 {[%clk 0:02:30]} 23. Nxf6+ {[%clk 0:01:04]}  gxf6 {[%clk 0:02:27]} 24. Qxf6 {[%clk 0:01:05]}  Qe7 {[%clk 0:01:49]} 25. Qh6 {[%clk 0:01:00]}  f6 {[%clk 0:01:49]} 26. Bxh7+ {[%clk 0:00:36]}  Qxh7 {[%clk 0:01:46]} 27. Qxf6 {[%clk 0:00:37]}  Qb1+ {[%clk 0:01:27]} 28. Be1 {[%clk 0:00:32]}  Qxe1# {[%clk 0:01:25]} 0-1


[Site "https://www.chess.com"]

[Event "Titled Tuesday Blitz November 22 Late 2022"]
[White "Sabar, Ethmane Daouda"]
[Black "Hirneise, Jens"]
[WhiteFideId "19600097"]
[BlackFideId "24614734"]
[WhiteElo "1950"]
[BlackElo "2344"]
[Result "0-1"]
[Round "04"]
[TimeControl "180+1"]
[Date "2022.11.23"]
[WhiteClock "0:00:15"]
[BlackClock "0:02:02"]

1. b3 {[%clk 0:03:00]}  d5 {[%clk 0:02:59]} 2. Bb2 {[%clk 0:03:00]}  Bg4 {[%clk 0:02:59]} 3. c4 {[%clk 0:02:58]}  e6 {[%clk 0:02:53]} 4. g3 {[%clk 0:02:55]}  Nf6 {[%clk 0:02:52]} 5. Bg2 {[%clk 0:02:56]}  c6 {[%clk 0:02:51]} 6. Nf3 {[%clk 0:02:55]}  Bxf3 {[%clk 0:02:47]} 7. Bxf3 {[%clk 0:02:56]}  Be7 {[%clk 0:02:48]} 8. O-O {[%clk 0:02:55]}  Nbd7 {[%clk 0:02:48]} 9. d3 {[%clk 0:02:53]}  O-O {[%clk 0:02:48]} 10. e4 {[%clk 0:02:52]}  dxe4 {[%clk 0:02:39]} 11. dxe4 {[%clk 0:02:53]}  e5 {[%clk 0:02:39]} 12. Qc2 {[%clk 0:02:44]}  Qc7 {[%clk 0:02:39]} 13. Nc3 {[%clk 0:02:33]}  Nc5 {[%clk 0:02:39]} 14. b4 {[%clk 0:02:30]}  Ne6 {[%clk 0:02:39]} 15. a3 {[%clk 0:02:22]}  Nd4 {[%clk 0:02:39]} 16. Qd3 {[%clk 0:02:17]}  Rfd8 {[%clk 0:02:39]} 17. Qe3 {[%clk 0:02:17]}  Nc2 {[%clk 0:02:35]} 18. Qe2 {[%clk 0:02:15]}  Nxa1 {[%clk 0:02:35]} 19. Rxa1 {[%clk 0:02:15]}  a5 {[%clk 0:02:36]} 20. b5 {[%clk 0:02:14]}  Bc5 {[%clk 0:02:35]} 21. Na4 {[%clk 0:01:50]}  Bd4 {[%clk 0:02:34]} 22. b6 {[%clk 0:01:44]}  Qe7 {[%clk 0:02:31]} 23. Kg2 {[%clk 0:01:30]}  Bxb2 {[%clk 0:02:28]} 24. Qxb2 {[%clk 0:01:31]}  Rd4 {[%clk 0:02:29]} 25. Re1 {[%clk 0:01:18]}  Rxc4 {[%clk 0:02:28]} 26. Qb3 {[%clk 0:01:08]}  Rd4 {[%clk 0:02:26]} 27. Rc1 {[%clk 0:01:00]}  Nxe4 {[%clk 0:02:21]} 28. Bxe4 {[%clk 0:00:58]}  Rxe4 {[%clk 0:02:22]} 29. Nc5 {[%clk 0:00:56]}  Rd4 {[%clk 0:02:22]} 30. Qc3 {[%clk 0:00:46]}  Rd5 {[%clk 0:02:17]} 31. a4 {[%clk 0:00:39]}  h5 {[%clk 0:02:12]} 32. h4 {[%clk 0:00:37]}  e4 {[%clk 0:02:09]} 33. Rc2 {[%clk 0:00:26]}  f5 {[%clk 0:02:04]} 34. Qc4 {[%clk 0:00:15]}  Kh7 {[%clk 0:02:02]} 0-1


[Site "https://www.chess.com"]

[Event "Titled Tuesday Blitz November 22 Late 2022"]
[White "Sanchez, Robert"]
[Black "Vargas, Mauricio"]
[WhiteFideId "2034360"]
[BlackFideId "4404572"]
[WhiteElo "2313"]
[BlackElo "2025"]
[Result "1-0"]
[Round "04"]
[TimeControl "180+1"]
[Date "2022.11.23"]
[WhiteClock "0:01:49"]
[BlackClock "0:00:46"]

1. e4 {[%clk 0:03:00]}  c5 {[%clk 0:02:54]} 2. Nf3 {[%clk 0:03:01]}  d6 {[%clk 0:02:52]} 3. d4 {[%clk 0:03:01]}  cxd4 {[%clk 0:02:53]} 4. Nxd4 {[%clk 0:03:02]}  Nf6 {[%clk 0:02:53]} 5. Nc3 {[%clk 0:03:02]}  a6 {[%clk 0:02:53]} 6. Be3 {[%clk 0:03:02]}  g6 {[%clk 0:02:52]} 7. f3 {[%clk 0:03:00]}  Bg7 {[%clk 0:02:52]} 8. Qd2 {[%clk 0:03:00]}  e5 {[%clk 0:02:49]} 9. Nb3 {[%clk 0:03:00]}  Be6 {[%clk 0:02:45]} 10. O-O-O {[%clk 0:03:00]}  Bf8 {[%clk 0:02:41]} 11. Kb1 {[%clk 0:02:54]}  Be7 {[%clk 0:02:41]} 12. g4 {[%clk 0:02:52]}  b5 {[%clk 0:02:40]} 13. h4 {[%clk 0:02:52]}  Nc6 {[%clk 0:02:19]} 14. Nd5 {[%clk 0:02:48]}  Rc8 {[%clk 0:02:12]} 15. Nxe7 {[%clk 0:02:41]}  Kxe7 {[%clk 0:02:10]} 16. Qf2 {[%clk 0:02:23]}  Rb8 {[%clk 0:02:04]} 17. Nc5 {[%clk 0:02:09]}  Bxa2+ {[%clk 0:01:29]} 18. Kxa2 {[%clk 0:02:07]}  Qa5+ {[%clk 0:01:27]} 19. Kb1 {[%clk 0:02:07]}  Nb4 {[%clk 0:01:25]} 20. Nb3 {[%clk 0:02:03]}  Rhc8 {[%clk 0:01:14]} 21. Nxa5 {[%clk 0:02:02]}  Rxc2 {[%clk 0:00:53]} 22. Qxc2 {[%clk 0:01:57]}  Nxc2 {[%clk 0:00:54]} 23. Kxc2 {[%clk 0:01:58]}  Rc8+ {[%clk 0:00:54]} 24. Kb1 {[%clk 0:01:49]}  Rb8 {[%clk 0:00:46]} 25. Nc6+ {[%clk 0:01:49]} 1-0


[Site "https://www.chess.com"]

[Event "Titled Tuesday Blitz November 22 Late 2022"]
[White "Sariego Figueredo, Wilfredo"]
[Black "Risteski, Emil"]
[WhiteFideId "3500080"]
[BlackFideId "15005267"]
[WhiteElo "2309"]
[BlackElo "2251"]
[Result "0-1"]
[Round "04"]
[TimeControl "180+1"]
[Date "2022.11.23"]
[WhiteClock "0:00:17"]
[BlackClock "0:00:51"]

1. d4 {[%clk 0:02:59]}  d5 {[%clk 0:02:49]} 2. Bf4 {[%clk 0:02:59]}  Nf6 {[%clk 0:02:47]} 3. e3 {[%clk 0:02:59]}  c5 {[%clk 0:02:45]} 4. c3 {[%clk 0:02:59]}  Nc6 {[%clk 0:02:43]} 5. Nd2 {[%clk 0:02:54]}  Bf5 {[%clk 0:02:40]} 6. Be2 {[%clk 0:02:48]}  e6 {[%clk 0:02:38]} 7. Ngf3 {[%clk 0:02:47]}  Bd6 {[%clk 0:02:37]} 8. Bg3 {[%clk 0:02:46]}  O-O {[%clk 0:02:35]} 9. O-O {[%clk 0:02:43]}  Ne4 {[%clk 0:02:30]} 10. Nh4 {[%clk 0:02:36]}  Nxg3 {[%clk 0:02:27]} 11. hxg3 {[%clk 0:02:34]}  Bg6 {[%clk 0:02:26]} 12. Nxg6 {[%clk 0:02:34]}  hxg6 {[%clk 0:02:27]} 13. Nf3 {[%clk 0:02:32]}  cxd4 {[%clk 0:02:26]} 14. exd4 {[%clk 0:02:31]}  Rb8 {[%clk 0:02:25]} 15. Re1 {[%clk 0:02:30]}  b5 {[%clk 0:02:25]} 16. b4 {[%clk 0:02:19]}  a5 {[%clk 0:02:04]} 17. a3 {[%clk 0:02:17]}  Re8 {[%clk 0:01:59]} 18. Qd2 {[%clk 0:02:14]}  Qc7 {[%clk 0:01:50]} 19. Reb1 {[%clk 0:02:13]}  axb4 {[%clk 0:01:40]} 20. axb4 {[%clk 0:02:11]}  Red8 {[%clk 0:01:30]} 21. Ne1 {[%clk 0:02:10]}  e5 {[%clk 0:01:30]} 22. dxe5 {[%clk 0:02:05]}  Nxe5 {[%clk 0:01:31]} 23. f4 {[%clk 0:01:54]}  Nc4 {[%clk 0:01:23]} 24. Bxc4 {[%clk 0:01:52]}  dxc4 {[%clk 0:01:21]} 25. Qe2 {[%clk 0:01:40]}  Qb6+ {[%clk 0:01:18]} 26. Kh1 {[%clk 0:01:28]}  Kh7 {[%clk 0:01:14]} 27. Nf3 {[%clk 0:01:25]}  Rh8 {[%clk 0:01:14]} 28. Nh4 {[%clk 0:01:14]}  Kg8 {[%clk 0:01:11]} 29. Qf3 {[%clk 0:00:55]}  g5 {[%clk 0:01:08]} 30. fxg5 {[%clk 0:00:54]}  Qc7 {[%clk 0:01:07]} 31. Ra8 {[%clk 0:00:50]}  Bxg3 {[%clk 0:01:03]} 32. Rxb8+ {[%clk 0:00:42]}  Qxb8 {[%clk 0:01:04]} 33. Kg1 {[%clk 0:00:39]}  Rxh4 {[%clk 0:01:01]} 34. Rb2 {[%clk 0:00:19]}  Qb6+ {[%clk 0:00:57]} 35. Kf1 {[%clk 0:00:19]}  Rh1+ {[%clk 0:00:57]} 36. Ke2 {[%clk 0:00:20]}  Re1+ {[%clk 0:00:58]} 37. Kd2 {[%clk 0:00:19]}  Qd6+ {[%clk 0:00:58]} 38. Kc2 {[%clk 0:00:18]}  Qg6+ {[%clk 0:00:52]} 39. Kd2 {[%clk 0:00:17]}  Qxg5+ {[%clk 0:00:52]} 40. Kc2 {[%clk 0:00:17]}  Qc1# {[%clk 0:00:51]} 0-1


[Site "https://www.chess.com"]

[Event "Titled Tuesday Blitz November 22 Late 2022"]
[White "Schut, Han"]
[Black "Haydon, David L"]
[WhiteFideId "1005561"]
[BlackFideId "415405"]
[WhiteElo "2024"]
[BlackElo "2317"]
[Result "0-1"]
[Round "04"]
[TimeControl "180+1"]
[Date "2022.11.23"]
[WhiteClock "0:00:07"]
[BlackClock "0:01:07"]

1. e4 {[%clk 0:02:56]}  c6 {[%clk 0:02:05]} 2. d4 {[%clk 0:02:55]}  d5 {[%clk 0:02:06]} 3. e5 {[%clk 0:02:55]}  Bf5 {[%clk 0:02:06]} 4. Nf3 {[%clk 0:02:56]}  e6 {[%clk 0:02:06]} 5. Be2 {[%clk 0:02:56]}  c5 {[%clk 0:02:07]} 6. Be3 {[%clk 0:02:56]}  Nc6 {[%clk 0:02:06]} 7. Nc3 {[%clk 0:02:49]}  Nge7 {[%clk 0:02:04]} 8. O-O {[%clk 0:02:49]}  a6 {[%clk 0:02:04]} 9. dxc5 {[%clk 0:02:43]}  Ng6 {[%clk 0:02:04]} 10. Nd4 {[%clk 0:02:40]}  Nxd4 {[%clk 0:02:03]} 11. Bxd4 {[%clk 0:02:40]}  Qc7 {[%clk 0:02:03]} 12. b4 {[%clk 0:02:26]}  Nxe5 {[%clk 0:02:01]} 13. Na4 {[%clk 0:02:22]}  Nc6 {[%clk 0:02:00]} 14. Nb6 {[%clk 0:02:16]}  Rd8 {[%clk 0:02:00]} 15. a3 {[%clk 0:01:59]}  e5 {[%clk 0:01:55]} 16. Bb2 {[%clk 0:01:46]}  d4 {[%clk 0:01:53]} 17. Bc4 {[%clk 0:01:38]}  Be7 {[%clk 0:01:52]} 18. Qf3 {[%clk 0:00:46]}  Bg6 {[%clk 0:01:51]} 19. c3 {[%clk 0:00:46]}  O-O {[%clk 0:01:50]} 20. cxd4 {[%clk 0:00:45]}  Nxd4 {[%clk 0:01:49]} 21. Bxd4 {[%clk 0:00:41]}  Rxd4 {[%clk 0:01:50]} 22. Qb3 {[%clk 0:00:26]}  Bg5 {[%clk 0:01:19]} 23. Rad1 {[%clk 0:00:23]}  Rfd8 {[%clk 0:01:18]} 24. Nd5 {[%clk 0:00:21]}  Qd7 {[%clk 0:01:17]} 25. Rxd4 {[%clk 0:00:16]}  exd4 {[%clk 0:01:17]} 26. f4 {[%clk 0:00:17]}  Be4 {[%clk 0:01:10]} 27. Nb6 {[%clk 0:00:15]}  Qg4 {[%clk 0:01:09]} 28. Qg3 {[%clk 0:00:08]}  Qxg3 {[%clk 0:01:08]} 29. hxg3 {[%clk 0:00:09]}  Bf6 {[%clk 0:01:08]} 30. Rd1 {[%clk 0:00:07]}  d3 {[%clk 0:01:07]} 31. Kf2 {[%clk 0:00:06]}  Bd4+ {[%clk 0:01:07]} 32. Ke1 {[%clk 0:00:07]}  Be3 {[%clk 0:01:07]} 0-1


[Site "https://www.chess.com"]

[Event "Titled Tuesday Blitz November 22 Late 2022"]
[White "Sebag, Marie"]
[Black "Desideri, Ricardo Maruchi"]
[WhiteFideId "617822"]
[BlackFideId "2110440"]
[WhiteElo "2440"]
[BlackElo "1945"]
[Result "0-1"]
[Round "04"]
[TimeControl "180+1"]
[Date "2022.11.23"]
[WhiteClock "0:01:55"]
[BlackClock "0:00:58"]

1. c4 {[%clk 0:03:00]}  e5 {[%clk 0:02:48]} 2. Nc3 {[%clk 0:03:00]}  Nf6 {[%clk 0:02:47]} 3. g3 {[%clk 0:02:58]}  d5 {[%clk 0:02:47]} 4. cxd5 {[%clk 0:02:55]}  Nxd5 {[%clk 0:02:48]} 5. Bg2 {[%clk 0:02:55]}  Be6 {[%clk 0:02:45]} 6. Qb3 {[%clk 0:02:47]}  Nb6 {[%clk 0:02:43]} 7. Qb5+ {[%clk 0:02:45]}  N8d7 {[%clk 0:02:34]} 8. Bxb7 {[%clk 0:02:40]}  Rb8 {[%clk 0:02:35]} 9. Bg2 {[%clk 0:02:39]}  Bc4 {[%clk 0:02:21]} 10. Qa4 {[%clk 0:02:33]}  Nxa4 {[%clk 0:02:19]} 11. Nxa4 {[%clk 0:02:34]}  Bd6 {[%clk 0:02:04]} 12. b3 {[%clk 0:02:33]}  Bb5 {[%clk 0:02:02]} 13. Nc3 {[%clk 0:02:31]}  Ba6 {[%clk 0:02:00]} 14. Bb2 {[%clk 0:02:32]}  Bb7 {[%clk 0:01:59]} 15. Nf3 {[%clk 0:02:30]}  O-O {[%clk 0:01:57]} 16. O-O {[%clk 0:02:30]}  f5 {[%clk 0:01:56]} 17. d3 {[%clk 0:02:29]}  Kh8 {[%clk 0:01:54]} 18. Rfd1 {[%clk 0:02:25]}  Qe7 {[%clk 0:01:54]} 19. e3 {[%clk 0:02:22]}  f4 {[%clk 0:01:48]} 20. gxf4 {[%clk 0:02:19]}  exf4 {[%clk 0:01:48]} 21. e4 {[%clk 0:02:20]}  Ne5 {[%clk 0:01:44]} 22. Nxe5 {[%clk 0:02:19]}  Bxe5 {[%clk 0:01:44]} 23. d4 {[%clk 0:02:19]}  Bf6 {[%clk 0:01:39]} 24. f3 {[%clk 0:02:18]}  Rbd8 {[%clk 0:01:32]} 25. e5 {[%clk 0:02:18]}  Bh4 {[%clk 0:01:29]} 26. Rac1 {[%clk 0:02:17]}  Qg5 {[%clk 0:01:22]} 27. Kh1 {[%clk 0:02:14]}  Qh5 {[%clk 0:01:14]} 28. Ne2 {[%clk 0:02:06]}  Bxf3 {[%clk 0:01:10]} 29. Ng1 {[%clk 0:02:00]}  Bxg2+ {[%clk 0:01:07]} 30. Kxg2 {[%clk 0:02:00]}  Qg4+ {[%clk 0:01:06]} 31. Kf1 {[%clk 0:01:59]}  f3 {[%clk 0:01:00]} 32. Rd3 {[%clk 0:01:55]}  Qg2# {[%clk 0:00:58]} 0-1


[Site "https://www.chess.com"]

[Event "Titled Tuesday Blitz November 22 Late 2022"]
[White "Shimanov, Aleksandr"]
[Black "Nasuta, Grzegorz"]
[WhiteFideId "4198603"]
[BlackFideId "1141686"]
[WhiteElo "2605"]
[BlackElo "2440"]
[Result "1-0"]
[Round "04"]
[TimeControl "180+1"]
[Date "2022.11.22"]
[WhiteClock "0:01:14"]
[BlackClock "0:00:06"]

1. e4 {[%clk 0:03:00]}  c5 {[%clk 0:02:58]} 2. Nf3 {[%clk 0:02:57]}  d6 {[%clk 0:02:58]} 3. d4 {[%clk 0:02:54]}  cxd4 {[%clk 0:02:59]} 4. Qxd4 {[%clk 0:02:54]}  Nc6 {[%clk 0:02:58]} 5. Bb5 {[%clk 0:02:54]}  Bd7 {[%clk 0:02:55]} 6. Qd3 {[%clk 0:02:54]}  g6 {[%clk 0:02:42]} 7. c4 {[%clk 0:02:52]}  Bg7 {[%clk 0:02:42]} 8. Nc3 {[%clk 0:02:52]}  Nf6 {[%clk 0:02:42]} 9. O-O {[%clk 0:02:53]}  O-O {[%clk 0:02:40]} 10. h3 {[%clk 0:02:48]}  a6 {[%clk 0:02:35]} 11. Bxc6 {[%clk 0:02:48]}  bxc6 {[%clk 0:02:35]} 12. Bf4 {[%clk 0:02:40]}  Qb6 {[%clk 0:02:02]} 13. b3 {[%clk 0:02:38]}  Rfd8 {[%clk 0:02:01]} 14. Rad1 {[%clk 0:02:29]}  a5 {[%clk 0:01:57]} 15. Na4 {[%clk 0:02:27]}  Qb7 {[%clk 0:01:55]} 16. e5 {[%clk 0:02:24]}  Ne8 {[%clk 0:01:21]} 17. exd6 {[%clk 0:02:18]}  exd6 {[%clk 0:01:20]} 18. Bg5 {[%clk 0:02:15]}  Rdb8 {[%clk 0:01:09]} 19. Rfe1 {[%clk 0:02:14]}  c5 {[%clk 0:01:07]} 20. Nc3 {[%clk 0:02:02]}  Bf5 {[%clk 0:00:58]} 21. Qd2 {[%clk 0:02:00]}  Bxh3 {[%clk 0:00:57]} 22. Nd5 {[%clk 0:01:59]}  Be6 {[%clk 0:00:51]} 23. Qf4 {[%clk 0:01:52]}  a4 {[%clk 0:00:41]} 24. Rxe6 {[%clk 0:01:45]}  fxe6 {[%clk 0:00:39]} 25. Ne7+ {[%clk 0:01:44]}  Kh8 {[%clk 0:00:32]} 26. Qf7 {[%clk 0:01:43]}  Nc7 {[%clk 0:00:28]} 27. Bf6 {[%clk 0:01:42]}  Rg8 {[%clk 0:00:25]} 28. Ng5 {[%clk 0:01:26]}  Qb8 {[%clk 0:00:07]} 29. Nxg6+ {[%clk 0:01:16]}  hxg6 {[%clk 0:00:06]} 30. Rd3 {[%clk 0:01:14]} 1-0


[Site "https://www.chess.com"]

[Event "Titled Tuesday Blitz November 22 Late 2022"]
[White "Silva, Caio Henrique Angelico"]
[Black "Gascon Del Nogal, Jose Rafael"]
[WhiteFideId "22777210"]
[BlackFideId "3902463"]
[WhiteElo "1990"]
[BlackElo "2473"]
[Result "1-0"]
[Round "04"]
[TimeControl "180+1"]
[Date "2022.11.23"]
[WhiteClock "0:00:52"]
[BlackClock "0:00:20"]

1. Nf3 {[%clk 0:03:00]}  c5 {[%clk 0:02:59]} 2. g3 {[%clk 0:03:00]}  Nc6 {[%clk 0:02:57]} 3. d4 {[%clk 0:03:00]}  cxd4 {[%clk 0:02:56]} 4. Nxd4 {[%clk 0:03:01]}  d5 {[%clk 0:02:54]} 5. Bg2 {[%clk 0:03:00]}  g6 {[%clk 0:02:53]} 6. c4 {[%clk 0:02:56]}  Nf6 {[%clk 0:02:37]} 7. Nc3 {[%clk 0:02:53]}  e6 {[%clk 0:02:14]} 8. O-O {[%clk 0:02:50]}  Bg7 {[%clk 0:02:14]} 9. cxd5 {[%clk 0:02:49]}  Nxd5 {[%clk 0:02:13]} 10. Nxc6 {[%clk 0:02:45]}  bxc6 {[%clk 0:02:13]} 11. Qa4 {[%clk 0:02:31]}  O-O {[%clk 0:02:10]} 12. Qxc6 {[%clk 0:02:15]}  Bd7 {[%clk 0:02:09]} 13. Qa6 {[%clk 0:02:13]}  Nxc3 {[%clk 0:02:05]} 14. bxc3 {[%clk 0:02:12]}  Rb8 {[%clk 0:02:00]} 15. Bf4 {[%clk 0:02:10]}  Rb2 {[%clk 0:01:42]} 16. Rad1 {[%clk 0:02:06]}  Qc8 {[%clk 0:01:33]} 17. Qxc8 {[%clk 0:01:42]}  Bxc8 {[%clk 0:01:32]} 18. Rd2 {[%clk 0:01:42]}  Rxd2 {[%clk 0:01:22]} 19. Bxd2 {[%clk 0:01:42]}  Ba6 {[%clk 0:01:22]} 20. Bf3 {[%clk 0:01:38]}  Rb8 {[%clk 0:01:13]} 21. Be3 {[%clk 0:01:35]}  Rb2 {[%clk 0:01:02]} 22. Bxa7 {[%clk 0:01:31]}  Bxe2 {[%clk 0:01:01]} 23. Bxe2 {[%clk 0:01:29]}  Rxe2 {[%clk 0:01:02]} 24. Bd4 {[%clk 0:01:18]}  e5 {[%clk 0:00:49]} 25. Be3 {[%clk 0:01:14]}  Rc2 {[%clk 0:00:37]} 26. Rb1 {[%clk 0:01:08]}  h5 {[%clk 0:00:32]} 27. Rb8+ {[%clk 0:01:07]}  Kh7 {[%clk 0:00:32]} 28. a4 {[%clk 0:01:01]}  e4 {[%clk 0:00:26]} 29. a5 {[%clk 0:00:59]}  Ra2 {[%clk 0:00:24]} 30. Ra8 {[%clk 0:00:57]}  Bxc3 {[%clk 0:00:23]} 31. a6 {[%clk 0:00:57]}  Kg7 {[%clk 0:00:20]} 32. a7 {[%clk 0:00:52]} 1-0


[Site "https://www.chess.com"]

[Event "Titled Tuesday Blitz November 22 Late 2022"]
[White "Stankovic, Ivan G"]
[Black "Cortes Orihuela, Javier"]
[WhiteFideId "902837"]
[BlackFideId "3414329"]
[WhiteElo "2226"]
[BlackElo "2080"]
[Result "0-1"]
[Round "04"]
[TimeControl "180+1"]
[Date "2022.11.23"]
[WhiteClock "0:01:15"]
[BlackClock "0:00:22"]

1. e4 {[%clk 0:02:57]}  e5 {[%clk 0:02:59]} 2. d4 {[%clk 0:02:57]}  exd4 {[%clk 0:02:58]} 3. Qxd4 {[%clk 0:02:58]}  Nc6 {[%clk 0:02:57]} 4. Qe3 {[%clk 0:02:58]}  d6 {[%clk 0:02:51]} 5. Nc3 {[%clk 0:02:58]}  Nf6 {[%clk 0:02:50]} 6. Bd2 {[%clk 0:02:58]}  Be7 {[%clk 0:02:50]} 7. O-O-O {[%clk 0:02:59]}  O-O {[%clk 0:02:48]} 8. Qg3 {[%clk 0:02:59]}  Be6 {[%clk 0:02:42]} 9. h4 {[%clk 0:02:59]}  a6 {[%clk 0:02:34]} 10. h5 {[%clk 0:02:58]}  b5 {[%clk 0:02:31]} 11. Bh6 {[%clk 0:02:56]}  Ne8 {[%clk 0:02:31]} 12. Bxg7 {[%clk 0:02:56]}  Nxg7 {[%clk 0:02:31]} 13. h6 {[%clk 0:02:56]}  Bg5+ {[%clk 0:02:11]} 14. f4 {[%clk 0:02:56]}  Bf6 {[%clk 0:02:02]} 15. Nf3 {[%clk 0:02:46]}  b4 {[%clk 0:02:01]} 16. Nd5 {[%clk 0:02:38]}  Bxd5 {[%clk 0:01:59]} 17. exd5 {[%clk 0:02:38]}  Ne7 {[%clk 0:01:58]} 18. Bd3 {[%clk 0:02:37]}  Ng6 {[%clk 0:01:54]} 19. hxg7 {[%clk 0:02:36]}  Bxg7 {[%clk 0:01:54]} 20. Rxh7 {[%clk 0:02:22]}  Kxh7 {[%clk 0:01:39]} 21. Ng5+ {[%clk 0:02:21]}  Kg8 {[%clk 0:01:37]} 22. Qh3 {[%clk 0:02:11]}  Re8 {[%clk 0:01:37]} 23. Qh7+ {[%clk 0:02:01]}  Kf8 {[%clk 0:01:37]} 24. Bxg6 {[%clk 0:01:49]}  Qf6 {[%clk 0:01:23]} 25. c3 {[%clk 0:01:30]}  Qxg6 {[%clk 0:01:05]} 26. Qh3 {[%clk 0:01:15]}  bxc3 {[%clk 0:00:52]} 27. b3 {[%clk 0:01:15]}  Re2 {[%clk 0:00:22]} 0-1


[Site "https://www.chess.com"]